Cogmind - Beta 14 @@@ ROGUE MODE // 2024.12.01 @ 23:35:53 Player: PDD Result: Destroyed by D-53 Grenadier with Mini Grenade Launcher Performance ------------- Evolutions (0) 0 Regions Visited (2) 400 Robots Destroyed (17) 85 Value Destroyed (469) 469 Prototype IDs (2) 40 Alien Tech Used (0) 0 Bonus (0) 0 TOTAL SCORE: 994 Bonus ------- None Cogmind --------- Core Integrity 0/250 Matter 223/300 Energy 74/160 System Corruption 5% Temperature Cool (59) Movement Core (300) Ox5 Location -10/Mines Parts ------- > --- POWER (1) -------- Light Nuclear Core > --- PROPULSION (2) --- (None) > --- UTILITY (2) ------ Medium Storage Unit Propulsion Shielding > --- WEAPON (2) ------- (None) > --- INVENTORY (10) --- Large Matter Pod (0) Visual Processing Unit Signal Interpreter Terrain Scanner Terrain Scan Processor Seismic Detector ECM Suite Peak State ------------ > --- POWER ------------ Ion Engine > --- PROPULSION ------- Light Treads Light Treads > --- UTILITY ---------- Cooling System Small Storage Unit > --- WEAPON ----------- Assault Rifle Light Assault Rifle > --- INVENTORY -------- Ion Engine Light Nuclear Core Light Treads Visual Processing Unit Signal Interpreter Terrain Scanner Seismic Detector ECM Suite [Rating: 9] Favorites ----------- Power Ion Engine Engine Ion Engine Power Core Light Nuclear Core Propulsion Light Treads Treads Light Treads Utility Small Storage Unit Device Heat Sink Storage Small Storage Unit Weapon Assault Rifle Energy Gun Small Laser Ballistic Gun Assault Rifle Launcher Grenade Launcher Build | -11 -10 -10 ------- Run | Yrd Mat Min Slots Evolved . | . . . Power . | . . . Propulsion . | . . . Utility . | . . . Weapon . | . . . Parts Attached 19 | 8 8 3 Power 5 | 2 1 2 Engine 4 | 2 1 1 Core 1 | . . 1 Reactor . | . . . Propulsion 3 | 2 1 . Treads 3 | 2 1 . Leg . | . . . Wheel . | . . . Hover . | . . . Flight . | . . . Utility 6 | 1 4 1 Device 3 | . 3 . Storage 2 | 1 1 . Processor . | . . . Hackware . | . . . Protection 1 | . . 1 Artifact . | . . . Weapon 5 | 3 2 . Energy Gun 2 | 2 . . Energy Cannon . | . . . Ballistic Gun 2 | 1 1 . Ballistic Cannon . | . . . Launcher 1 | . 1 . Special Weapon . | . . . Impact Weapon . | . . . Slashing Weapon . | . . . Piercing Weapon . | . . . Special Melee Weapon . | . . . Unidentified Prototypes . | . . . Parts Lost 6 | . . 6 Power 1 | . . 1 Propulsion 2 | . . 2 Utility 1 | . . 1 Weapon 2 | . . 2 Highest Loss Streak 6 | . . 6 To Critical Strikes . | . . . Average Slot Usage (%) 95 | . 95 94 Engine 14 | . 14 14 Treads 27 | . 28 24 Device 10 | . 10 14 Storage 14 | . 14 14 Energy Gun 2 | . 2 . Ballistic Gun 23 | . 24 14 Launcher 1 | . . 12 Peak Build Rating 9 | 6 9 9 Average Rating 7 | 4 7 8 On Entrance 5 | . 6 9 Naked Turns . | . . . Heaviest Build 22 | 13 22 22 Greatest Support 40 | 40 40 40 Greatest Overweight (x) 6 | . . 6 Average Overweight (x) . | . . . Largest Inventory Capacity 10 | 8 10 10 Average Capacity 8 | 7 8 10 Most Carried 10 | 2 10 10 Average Carried 7 | 1 7 9 Final Capacity 10 | 8 10 10 Final Carried 10 | 2 10 7 Class Distribution -------------------- 100% | Mutant Dominant Class ---------------- Mutant | -10/Materials Mutant | -10/Mines Resources | -11 -10 -10 ----------- Run | Yrd Mat Min Matter Collected 552 | 250 302 . Remotely . | . . . Salvage Created 558 | . 546 12 Parts 37 | . 37 . Haulers Intercepted . | . . . Recyclers Shooed 1 | . 1 . Parts Field Recycled . | . . . Retrieved Matter . | . . . Parts Self-Destructed . | . . . Prevented . | . . . Kills | -11 -10 -10 ------- Run | Yrd Mat Min Combat Hostiles Destroyed 17 | . 14 3 Guns 14 | . 14 . AOE 3 | . . 3 Classes Destroyed 5 | . 4 1 Tunneler 1 | . 1 . Watcher 2 | . 2 . Swarmer 3 | . 3 . Grunt 11 | . 11 . Assembled 3 | . . 3 Best Kill Streak 4 | . 4 3 Combat Bots Only 4 | . 4 3 Max Kills in Single Turn 1 | . 1 1 Gunslinging . | . . . Exploded 1 | . . 1 Melee . | . . . Uniques/NPCs Destroyed . | . . . Combat | -11 -10 -10 -------- Run | Yrd Mat Min Hostile Shots Fired 89 | . 75 14 Missed 26 | . 24 2 Damage Taken 1077 | . 561 516 Core 254 | . 59 195 Absorbed by Shields . | . . . Core Remaining (%) 100 | 100 . . Volleys Fired 67 | . 58 9 Largest 2 | . 2 2 Hottest 60 | . 60 50 Shots Fired 128 | . 116 12 Gun 125 | . 116 9 Cannon . | . . . Launcher 3 | . . 3 Special . | . . . Kinetic 113 | . 104 9 Thermal 12 | . 12 . Explosive 3 | . . 3 Electromagnetic . | . . . Robot Hit Streak 10 | . 10 2 Robot Miss Streak 5 | . 4 5 Penetration Max . | . . . Secondary Targets 4 | . 4 . Max Gunslinging Chain 1 | . 1 . Shots Hit Robots 79 | . 76 3 Core Hits 39 | . 33 6 Critical Kills . | . . . Critical Parts Destroyed . | . . . Critical Strikes . | . . . Melee Attacks . | . . . Impact . | . . . Slashing . | . . . Piercing . | . . . Sneak Attacks . | . . . Combat Hostiles . | . . . Follow-up Attacks . | . . . Damage Inflicted 976 | . 819 157 Guns 830 | . 818 12 Cannons . | . . . Explosions 145 | . . 145 Melee . | . . . Ramming 1 | . 1 . Kinetic 775 | . 763 12 Thermal 55 | . 55 . Explosive 145 | . . 145 Electromagnetic . | . . . Impact . | . . . Slashing . | . . . Piercing . | . . . Highest Corruption 5 | . . 5 Average Corruption 5 | . . 5 Corruption Purged . | . . . Corruption Blocked . | . . . Effects 1 | . . 1 Heat Flow Errors 1 | . . 1 Overload Shots . | . . . Overflow Damage 16 | . . 16 Projectiles . | . . . Explosions 16 | . . 16 Melee . | . . . Knockbacks . | . . . Impact . | . . . Kinetic . | . . . Secondary . | . . . Self-Inflicted Damage . | . . . Shots . | . . . Rammed 2 | . 2 . Targets Rammed 2 | . 2 . Kicked . | . . . Crushed . | . . . Highest Temperature 251 | . 90 251 Average Temperature 57 | . 42 142 Received Heat Transfer 255 | . 255 . Siege Activations . | . . . Robots Corrupted . | . . . Combat Hostiles . | . . . Parts Fried . | . . . Impact Corruptions . | . . . Robots Melted . | . . . Combat Hostiles . | . . . Parts Melted . | . . . Heat Transferred 125 | . 125 . Parts Sabotaged . | . . . Parts Stolen . | . . . Parts Stripped . | . . . Power Chain Reactions . | . . . Alert | -11 -10 -10 ------- Run | Yrd Mat Min Peak Influence 239 | . 239 57 Initial 34 | . . 34 Average 93 | . 106 36 Maximum Alert Level 1 | . 1 . Low Security (%) 84 | 100 81 100 Level 1 15 | . 18 . Level 2 . | . . . Level 3 . | . . . Level 4 . | . . . Level 5 . | . . . High Security . | . . . Max Security . | . . . Squads Dispatched 4 | . 4 . Investigation 3 | . 3 . Extermination . | . . . Reinforcement 1 | . 1 . Assault . | . . . Garrison . | . . . Intercept . | . . . Searches Triggered . | . . . Construction Impeded . | . . . Haulers Reinforced . | . . . Active Scanning Responses . | . . . Cargo Convoy Interrupts . | . . . Stealth | -11 -10 -10 --------- Run | Yrd Mat Min Distress Signals . | . . . Communications Jammed . | . . . Distress Signals . | . . . Times Spotted 33 | . 19 14 Peak Tracking Total 11 | . 4 11 Tactical Retreats 1 | . 1 . Traps | -11 -10 -10 ------- Run | Yrd Mat Min Traps Triggered 1 | . 1 . Indirectly . | . . . Trap Hack Attempts . | . . . Triggered . | . . . Disarmed . | . . . Reprogrammed . | . . . Reused . | . . . Traps Extracted . | . . . Installed . | . . . Triggered . | . . . Most Traps Carried 1 | . . 1 Machines | -11 -10 -10 ---------- Run | Yrd Mat Min Machines Disabled . | . . . Max in Single Turn . | . . . Machines Repaired . | . . . Machines Dismantled . | . . . Machines Sabotaged . | . . . Overloaded Fab Kills . | . . . Hacking | -11 -10 -10 --------- Run | Yrd Mat Min Machines Accessed 5 | . 5 . Terminals 4 | . 4 . Fabricators . | . . . Repair Stations . | . . . Recycling Units 1 | . 1 . Scanalyzers . | . . . Garrison Access . | . . . Total Hacks 21 | . 21 . Successful 12 | . 12 . Failed 9 | . 9 . Catastrophic 2 | . 2 . Database Lockouts . | . . . Manual . | . . . Terminals 18 | . 18 . Fabricators . | . . . Repair Stations . | . . . Recycling Units 3 | . 3 . Scanalyzers . | . . . Garrison Access . | . . . Terminal Hacks 9 | . 9 . Record 7 | . 7 . Prototype ID Bank 1 | . 1 . Registered Prototypes 1 | . 1 . Fabricator Hacks . | . . . Repair Station Hacks . | . . . Recycling Unit Hacks 3 | . 3 . Process 2 | . 2 . Report Inventory 1 | . 1 . Scanalyzer . | . . . Garrison Access Hacks . | . . . Unauthorized Hacks . | . . . Terminals . | . . . Fabricators . | . . . Repair Stations . | . . . Recycling Units . | . . . Scanalyzers . | . . . Garrison Access . | . . . Data Cores Recovered . | . . . Used . | . . . Hacking Detections 5 | . 5 . Full Trace Events 5 | . 5 . Feedback Events . | . . . Feedback Blocked . | . . . Robot Schematics Acquired . | . . . Robots Built . | . . . Authchips . | . . . Time . | . . . Total Robot Build Rating . | . . . Part Schematics Acquired . | . . . Parts Built . | . . . Authchips . | . . . Time . | . . . Total Part Build Rating . | . . . Parts Repaired . | . . . Time . | . . . Parts Recycled . | . . . Recycled Matter 25 | . 25 . Retrieved Matter . | . . . Retrieved Components . | . . . Parts Scanalyzed . | . . . Part Schematics Acquired . | . . . Parts Damaged . | . . . Bothacking | -11 -10 -10 ------------ Run | Yrd Mat Min Used RIF Installer . | . . . Robots Hacked . | . . . Non-combat . | . . . Combat . | . . . Robot Hacks Applied . | . . . Relay Couplers Released . | . . . Fabnet Peak Effective % . | . . . Robots Rewired . | . . . Allies Hacked . | . . . Hacks Repelled . | . . . Allies | -11 -10 -10 -------- Run | Yrd Mat Min Total Allies . | . . . Largest Group . | . . . Highest-Rated Group . | . . . Highest-Rated Ally . | . . . Total Orders . | . . . Ally Attacks . | . . . Total Damage . | . . . Kills . | . . . Allies Corrupted . | . . . Allies Melted . | . . . Intel | -11 -10 -10 ------- Run | Yrd Mat Min Robot Analysis Total . | . . . Derelict Logs Recovered . | . . . Drone Launches . | . . . Drone Recoveries . | . . . Exploration | -11 -10 -10 ------------- Run | Yrd Mat Min Turns Passed 1004 | 74 849 81 Spaces Moved 469 | 41 398 30 Core 5 | 3 . 2 Treads 464 | 38 398 28 Legs . | . . . Wheels . | . . . Hover . | . . . Flight . | . . . Fastest Speed 50 | 50 160 160 Average Speed 160 | 151 160 171 Slowest Speed 350 | 160 160 350 Overloaded Moves . | . . . Propulsion Burnouts . | . . . Robots Hopped . | . . . Cave-ins Triggered . | . . . Exploration Rate (%) 31 | 4 70 19 Regions Visited 2 Branch Regions 1 Pre-discovered Areas . | . . . Known Exits Taken . | . . . Unknown Exits Taken 2 | 1 1 . Scrap Searched . | . . . Spaces Dug . | . . . Terrain Destroyed 11 | . . 11 Melee . | . . . Projectile . | . . . AOE 11 | . . 11 Terrain Rammed . | . . . Walls Destroyed . | . . . Machines Disabled . | . . . Actions | -11 -10 -10 --------- Run | Yrd Mat Min Total 604 | 49 506 49 Wait 23 | . 19 4 Move 467 | 40 397 30 Hop . | . . . Pick Up 15 | 1 13 1 Fast Attach 7 | 6 1 . Attach 3 | . 1 2 Detach . | . . . Swap 9 | 2 6 1 Drop 11 | . 9 2 Fire 67 | . 58 9 Melee . | . . . Ram . | . . . Kick . | . . . Crush 2 | . 2 . Escape Stasis . | . . . Rewire . | . . . Trap . | . . . Miscellaneous . | . . . Route ------- -11/Scrapyard -10/Materials (discovered 3 exits: [*Mat] / [*Min x2]) -10/Mines History --------- Turn | Location | Event 28 | -11/Scrapyard | Discovered new exit (range 16) 75 | -11/Scrapyard | Entered Materials 311 | -10/Materials | Build established: Mutant 317 | -10/Materials | Discovered new exit (range 16) 617 | -10/Materials | Discovered new exit (range 7) 845 | -10/Materials | Discovered new exit (range 14) 924 | -10/Materials | Entered Mines 965 | -10/Mines | Assembled infested the area 965 | -10/Mines | Found a hidden stash of uninstalled traps 1002 | -10/Mines | Core integrity fell below 50% 1005 | -10/Mines | Destroyed by D-53 Grenadier with Mini Grenade Launcher Last Messages --------------- 00987_ The unstable cave ceiling collapses. 00988_ K-01 Serf collects debris. 00989_ as-03058 destroyed. 00993_ K-01 Serf collects debris. 00994_ Lgt. Treads destroyed. 00994_ System corrupted by crushing effect (+5). 00996_ as-15372 destroyed. 00996_ Grenade Launcher destroyed. 00996_ Lgt. Treads destroyed. 00997_ System corrupted: Heat flow error (+293). 00997_ The unstable cave ceiling collapses. 00997_ K-01 Serf collects debris. 00997_ Dropped Heavy Explosive Trap. 00999_ as-30037 destroyed. 00999_ as-61131 destroyed. 01000_ Cooling System destroyed. 01000_ K-01 Serf collects debris. 01002_ Ion Engine destroyed. 01002_ Assault Rifle destroyed. 01003_ K-01 Serf collects debris. Map ----- +----------------------------------------------------+ | ?????????????????????????????????????????????????? | | ?????????????????????????????????????????????????? | | ?????????????????????????????????????????????????? | | ?????????????????????????????????????????????????? | | ?????????????????????????????????????????????????? | | ?????????????????????????????????????????????????? | | ?????????????????????????????????????????????????? | | ?????????????????????????????????????????????????? | | ????????????????????????? #????????????????????? | | ??????????????????????? ????????????????????? | | ????????????????????# # ????????????????????? | | ??????????????????## % #???????????????????? | | ??????????????????# ???????????????????? | | ??????????????????? #???????????????????? | | ???????????????????? # ???????????????????? | | ????????????????????? #???????????????????? | | ?????????????????????? ####????????????????? | | ??????????????????????? ###??????????????? | | ???????????????????????# % ##?????????????? | | ???????????????????????# dd #####?????????? | | ??????????????????????## ##????????? | | ?????????????????????## ##???????? | | ????????????????????## k #???????? | | ????????????????????# #????? | | ????????????????????# ##???????? | | ???????????????????## @ # ####????????? | | ???????????????????# #?###???????????? | | ??????????????????## #???????????????? | | ??????? ???????## # #????????????? | | ???????# ###### # #????????????? | | ???????# ### #????????????? | | ???????# #?? #????????????? | | ???????+ #### #??? #????????????? | | ???????????????## # #??? #????????????? | | ????????????????#### ## ????????????? | | ???????????????????# ##### #####????????????? | | ???????????????????# #???# ##????????????????? | | ???????????????????# ##### ####?????????????????? | | ???????????????????# ###????????????????????? | | ???????????????????###### #??????????????????????? | | ?????????????????????#### ###????????????????????? | | ?????????????????????# #????????????????????? | | ?????????????????????# #????????????????????? | | ?????????????????????# #????????????????????? | | ?????????????????????# #????????????????????? | | ?????????????????????# #????????????????????? | | ?????????????????????########????????????????????? | | ?????????????????????????????????????????????????? | | | | | +----------------------------------------------------+ Best States ------------- Heat Dissipation 47 Energy Generation 10 Energy Capacity 250 Matter Stores 300 Matter Capacity 300 Sight Range 16 Terrain Scan Density 10 Evasion (%) 40 Recoil Reduction 2 Item Schematics ----------------- None Robot Schematics ------------------ None Fabricated ------------ Nothing Alien Tech Used ----------------- None Achievements -------------- None Challenges ------------ None Game ------ Seed 1 Manual? 1 Play Time 00:11:33 Cumulative 3.9 hours Start 2024.12.01 @ 02:07:46 End 2024.12.01 @ 23:35:53 Sessions 6 Manual Loads 0 Difficulty Rogue Special Mode None Game No. 9 Rogue 7 Adventurer 2 Explorer 0 Win Type - Total 0 Types 0/0/0/0/0/0/0/0/0 Lore% 5 Gallery% 8 Achievement% 9 Wizard Run 0 Options --------- Layout 0 ASCII 0 Keyboard 0 Movement Mouse Keybinds 0 Fullscreen 2 Font 18/SmallcapsGlow Map View 38x25 Zoom Use 86% Tactical HUD 1 Map Filters NONE Filters NONE Steam 1 RUN: cfe08c10-8cd0-41e2-aca2-cc32a4964da6